fUSD/lending_fUSD_20241021
["ID","MTS","AMOUNT","RATE_DAILY","PERIOD"]
[340576878,1729505668428,-900.0,0.00041,42]
[340576879,1729505668452,-49760.96861679,0.00041,120]
[340576880,1729505668476,-750.0,0.00041,120]
[340576881,1729505668501,-1431.0,0.00041,120]
[340576882,1729505668526,-11260.0803381,0.00041,60]
[340576883,1729505668550,-1000000.0,0.00041,120]
[340576884,1729505668574,-1852.15014993,0.00041,120]
[340576885,1729505668598,-502.66960743,0.00041,120]
[340576886,1729505668621,-195.32,0.00041,120]
[340576887,1729505668644,-2066.38533706,0.00041,120]
[340576888,1729505668668,-150.0,0.00041088,120]
[340576889,1729505668692,-526.27578729,0.00041095,60]
[340576890,1729505668714,-517.54992909,0.00041095,30]
[340576891,1729505668737,-500.0,0.00041095,90]
[340576892,1729505668759,-500.0,0.00041095,93]
[340576893,1729505668782,-500.0,0.00041095,96]
[340576894,1729505668805,-500.0,0.00041095,99]
[340576895,1729505668828,-500.0,0.00041095,102]
[340576896,1729505668851,-500.0,0.00041095,105]
[340576897,1729505668875,-500.0,0.00041095,108]
[340576898,1729505668901,-500.0,0.00041095,111]
[340576899,1729505668926,-500.0,0.00041095,114]
[340576900,1729505668952,-500.0,0.00041095,117]
[340576901,1729505668976,-390.38158617,0.00041095,120]
[340576902,1729505668999,-2571.45010876,0.00041095,30]
[340576903,1729505669025,-2663.73,0.00041095,120]
[340576904,1729505669050,-2663.73,0.00041095,120]
[340576905,1729505669076,-2663.73,0.00041095,120]
[340576906,1729505669102,-2663.73,0.00041095,120]
[340576907,1729505669128,-2663.73,0.00041095,120]
[340576908,1729505669151,-2663.73,0.00041095,120]
[340576909,1729505669174,-2663.73,0.00041095,120]
[340576910,1729505669198,-2663.73,0.00041095,120]
[340576911,1729505669222,-2663.73,0.00041095,120]
[340576912,1729505669247,-2663.73,0.00041095,120]
[340576913,1729505669270,-2663.73,0.00041095,120]
[340576914,1729505669293,-2663.73,0.00041095,120]
[340576915,1729505669317,-2663.73,0.00041095,120]
[340576916,1729505669341,-2663.73,0.00041095,120]
[340576917,1729505669365,-2663.73,0.00041095,120]
[340576918,1729505669388,-2663.73,0.00041095,120]
[340576919,1729505669414,-2663.73,0.00041095,120]
[340576920,1729505669683,-2663.73,0.00041095,120]
[340576921,1729505669708,-2663.73,0.00041095,120]
[340576922,1729505669733,-2663.73,0.00041095,120]
[340576923,1729505669758,-2663.73,0.00041095,120]
[340576924,1729505669783,-2663.73,0.00041095,120]
[340576925,1729505669808,-2663.73,0.00041095,120]
[340576926,1729505669833,-2663.86680737,0.00041095,120]
[340576927,1729505669858,-2000.0,0.00041095,30]
[340576928,1729505669884,-2000.0,0.00041095,30]
[340576929,1729505669912,-2000.0,0.00041095,30]
[340576930,1729505669938,-2000.0,0.00041095,30]
[340576931,1729505669963,-2000.0,0.00041095,30]
[340576932,1729505669988,-2000.0,0.00041095,30]
[340576933,1729505670013,-2000.0,0.00041095,30]
[340576934,1729505670037,-2000.0,0.00041095,30]
[340576935,1729505670062,-1083.68533226,0.00041095,30]
[340576936,1729505670089,-1000.0,0.00041096,120]
[340576937,1729505670114,-151.15,0.00041123,30]
[340576938,1729505670139,-150.0,0.00041264,120]
[340576939,1729505670165,-30000.0,0.000415,120]
[340576940,1729505670193,-150.0,0.00041699,120]
[340576941,1729505670220,-24139.56,0.000417,120]
[340576942,1729505670246,-1007.54,0.0004188,56]
[340576943,1729505670274,-274.14650638,0.00041918,30]
[340576944,1729505670299,-212.30851582,0.00041918,30]
[340576945,1729505670325,-150.0,0.00041918,30]
[340576946,1729505670350,-150.0,0.00041918,30]
[340576947,1729505670375,-150.0,0.00041918,30]
[340576948,1729505670402,-150.0,0.00041918,30]
[340576949,1729505670426,-150.0,0.00041918,30]
[340576950,1729505670452,-150.0,0.00041918,30]
[340576951,1729505670484,-150.0,0.00041918,30]
[340576952,1729505670508,-152.12146449,0.00041918,30]
[340576953,1729505670533,-150.0,0.00041918,30]
[340576954,1729505670557,-164.97474459,0.00041918,30]
[340576955,1729505670582,-150.0,0.00041918,30]
[340576956,1729505670607,-150.0,0.00041918,30]
[340576957,1729505670634,-150.0,0.00041949,120]
[340576958,1729505670659,-274.14650638,0.00041965,30]
[340576959,1729505670684,-212.30851582,0.00041965,30]
[340576960,1729505670708,-150.0,0.00041975,30]
[340576961,1729505670733,-1000.0,0.00041993,120]
[340576962,1729505670760,-50000.0,0.00042,32]
[340576963,1729505670788,-50000.0,0.00042,42]
[340576964,1729505670814,-29654.13743124,0.00042,52]
[340576965,1729505679702,150.0,0.0001099,2]
[340576966,1729505682049,-681.90048354,0.0003201,30]
[340576967,1729505682074,-500.0,0.0003201,30]
[340576968,1729505682100,-500.0,0.0003201,30]
[340576969,1729505682125,-885.96542885,0.0003201,30]
[340576970,1729505682164,-500.0,0.00033,30]
[340576971,1729505682193,-500.0,0.00033,30]
[340576972,1729505682220,-500.0,0.00033,30]
[340576973,1729505682248,-500.0,0.00033,30]
[340576974,1729505682288,-200.0,0.00033668,120]
[340576975,1729505682315,-2075.06,0.000342,30]
[340576976,1729505682344,-169.11,0.00034493,120]
[340576977,1729505682383,-2075.06,0.00041,30]
[340576978,1729505682416,-20345.86256876,0.00042,52]
[340576979,1729505682443,-75000.0,0.00042,120]
[340576980,1729505682468,-1621.24748948,0.00042,120]
[340576981,1729505682495,-49435.41137854,0.00042,30]
[340576982,1729505682520,-500.0,0.00042,120]
[340576983,1729505682545,-3200.0,0.00042,90]
[340576984,1729505682570,-264.46,0.00042,60]
[340576985,1729505682596,-154.5668545,0.00042,30]
[340576986,1729505682622,-11199.0,0.00042,120]
[340576987,1729505682647,-250.0,0.00042,30]
[340576988,1729505682672,-274.14650638,0.00042012,30]
[340576989,1729505682697,-212.30851582,0.00042012,30]
[340576990,1729505682722,-150.0,0.00042033,30]
[340576991,1729505682749,-274.14650638,0.00042059,30]
[340576992,1729505682774,-212.30851582,0.00042059,30]
[340576993,1729505682800,-150.0,0.0004209,30]
[340576994,1729505682825,-274.14650638,0.00042106,30]
[340576995,1729505682850,-212.30851582,0.00042106,30]
[340576996,1729505682875,-150.0,0.00042112,30]
[340576997,1729505682901,-150.0,0.00042147,120]
[340576998,1729505682928,-150.0,0.00042148,30]
[340576999,1729505682953,-150.0,0.0004215,30]
[340577000,1729505682979,-274.14650638,0.00042153,30]
[340577001,1729505683004,-212.30851582,0.00042153,30]
[340577002,1729505683029,-274.14650638,0.000422,30]
[340577003,1729505683055,-212.30851582,0.000422,30]
[340577004,1729505683080,-150.0,0.00042205,30]
[340577005,1729505683105,-274.14650638,0.00042247,30]
[340577006,1729505683131,-212.30851582,0.00042247,30]
[340577007,1729505683155,-150.0,0.00042263,30]
[340577008,1729505683181,-274.14650638,0.00042294,30]
[340577009,1729505683206,-212.30851582,0.00042294,30]
[340577010,1729505683231,-150.0,0.00042306,30]
[340577011,1729505683256,-150.0,0.00042306,30]
[340577012,1729505683281,-150.0,0.0004232,30]
[340577013,1729505683307,-274.14650638,0.00042341,30]
[340577014,1729505683334,-212.30851582,0.00042341,30]
[340577015,1729505683361,-150.0,0.00042378,30]
[340577016,1729505683387,-150.0,0.00042383,30]
[340577017,1729505683414,-274.14650638,0.00042388,30]
[340577018,1729505683440,-212.30851582,0.00042388,30]
[340577019,1729505683466,-274.14650638,0.00042435,30]
[340577020,1729505683492,-212.30851582,0.00042435,30]
[340577021,1729505683516,-150.0,0.00042435,30]
[340577022,1729505683539,-9460.01368118,0.00042452,120]
[340577023,1729505683563,-2993.0,0.00042478,57]
[340577024,1729505683847,-274.14650638,0.00042482,30]
[340577025,1729505683888,-212.30851582,0.00042482,30]
[340577026,1729505683915,-150.0,0.00042493,30]
[340577027,1729505683941,-150.0,0.000425,30]
[340577028,1729505683966,-75000.0,0.000425,120]
[340577029,1729505683992,-2000.0,0.000425,30]
[340577030,1729505684017,-7597.63714399,0.000425,120]
[340577031,1729505684042,-30000.0,0.000425,120]
[340577032,1729505684067,-27000.0,0.000425,60]
[340577033,1729505684092,-150.0,0.00042505,120]
[340577034,1729505684117,-274.14650638,0.00042529,30]
[340577035,1729505684141,-212.30851582,0.00042529,30]
[340577036,1729505684166,-150.0,0.0004255,30]
[340577037,1729505684191,-274.14650638,0.00042576,30]
[340577038,1729505684217,-212.30851582,0.00042576,30]
[340577039,1729505684242,-150.0,0.00042583,30]
[340577040,1729505684268,-150.0,0.00042608,30]
[340577041,1729505684292,-150.0,0.00042616,30]
[340577042,1729505684316,-274.14650638,0.00042623,30]
[340577043,1729505684341,-212.30851582,0.00042623,30]
[340577044,1729505684366,-150.0,0.00042665,30]
[340577045,1729505684390,-274.14650638,0.0004267,30]
[340577046,1729505684415,-212.30851582,0.0004267,30]
[340577047,1729505684440,-150.0,0.00042694,30]
[340577048,1729505684465,-150.0,0.00042694,30]
[340577049,1729505684490,-150.0,0.00042694,30]
[340577050,1729505684516,-4105.0,0.000427,117]
[340577051,1729505684540,-274.14650638,0.00042717,30]
[340577052,1729505684564,-212.30851582,0.00042717,30]
[340577053,1729505684588,-150.0,0.00042723,30]
[340577054,1729505684612,-274.14650638,0.00042764,30]
[340577055,1729505684636,-212.30851582,0.00042764,30]
[340577056,1729505684660,-150.0,0.0004278,30]
[340577057,1729505684683,-1487.08765672,0.000428,60]
[340577058,1729505684707,-1033.820223,0.000428,63]
[340577059,1729505684737,-442.5719127,0.000428,120]
[340577060,1729505684764,-274.14650638,0.00042811,30]
[340577061,1729505684790,-212.30851582,0.00042811,30]
[340577062,1729505684816,-150.0,0.00042838,30]
[340577063,1729505684844,-150.0,0.00042849,30]
[340577064,1729505684872,-228.7204224,0.0004285,120]
[340577065,1729505684901,-274.14650638,0.00042858,30]
[340577066,1729505684929,-212.30851582,0.00042858,30]
[340577067,1729505684956,-150.0,0.00042888,30]
[340577068,1729505684985,-1000.0,0.00042889,120]
[340577069,1729505685013,-150.0,0.00042895,30]
[340577070,1729505685039,-988.94432664,0.00042898,120]
[340577071,1729505685066,-606.29905883,0.000429,30]
[340577072,1729505685092,-234.05484046,0.000429,30]
[340577073,1729505685119,-191.36377282,0.000429,60]
[340577074,1729505685146,-274.14650638,0.00042905,30]
[340577075,1729505685172,-212.30851582,0.00042905,30]
[340577076,1729505685198,-274.14650638,0.00042953,30]
[340577077,1729505685224,-212.30851582,0.00042953,30]
[340577078,1729505685252,-150.0,0.00042953,30]
[340577079,1729505685278,-967.91,0.00042965,120]
[340577080,1729505685305,-2000.0,0.00042999,60]
[340577081,1729505685332,-274.14650638,0.00043,30]
[340577082,1729505685360,-212.30851582,0.00043,30]
[340577083,1729505685389,-50000.0,0.00043,33]
[340577084,1729505685418,-50000.0,0.00043,43]
[340577085,1729505685445,-50000.0,0.00043,53]
[340577086,1729505685471,-10000.0,0.00043,120]
[340577087,1729505685497,-8035.52970766,0.00043,30]
[340577088,1729505685525,-409.29498664,0.00043,120]
[340577089,1729505685551,-627.05923109,0.00043,60]
[340577090,1729505685576,-500.0,0.00043,120]
[340577091,1729505685601,-650.0,0.00043,120]
[340577092,1729505685627,-1000000.0,0.00043,120]
[340577093,1729505685652,-900.0,0.00043,44]
[340577094,1729505685676,-7186.44542742,0.00043,120]
[340577095,1729505685701,-11526.45477745,0.00043,120]
[340577096,1729505685726,-336000.0,0.00043,30]
[340577097,1729505685753,-150.0,0.0004301,30]
[340577098,1729505685777,-185.95,0.00043014,120]
[340577099,1729505685802,-274.14650638,0.00043047,30]
[340577100,1729505685827,-212.30851582,0.00043047,30]
[340577101,1729505685852,-150.0,0.00043068,30]
[340577102,1729505685877,-150.0,0.00043082,30]
[340577103,1729505685903,-150.0,0.00043082,30]
[340577104,1729505685928,-150.0,0.00043082,30]
[340577105,1729505685953,-684.90425,0.00043088,30]
[340577106,1729505685979,-274.14650638,0.00043094,30]
[340577107,1729505686002,-212.30851582,0.00043094,30]
[340577108,1729505686027,-150.0,0.000431,120]
[340577109,1729505686051,-258.43015,0.000431,120]
[340577110,1729505686076,-150.0,0.00043125,30]
[340577111,1729505686101,-274.14650638,0.00043141,30]
[340577112,1729505686126,-212.30851582,0.00043141,30]
[340577113,1729505686151,-150.0,0.00043183,30]
[340577114,1729505686176,-274.14650638,0.00043188,30]
[340577115,1729505686200,-212.30851582,0.00043188,30]
[340577116,1729505686226,-369.90755647,0.000432,30]
[340577117,1729505686257,-1430.42578131,0.000432,120]
[340577118,1729505686282,-1600.36683688,0.000432,30]
[340577119,1729505686306,-1153.57182846,0.00043234,36]
[340577120,1729505686332,-274.14650638,0.00043235,30]
[340577121,1729505686358,-212.30851582,0.00043235,30]
[340577122,1729505686383,-150.0,0.0004324,30]
[340577123,1729505686408,-150.0,0.00043248,30]
[340577124,1729505686433,-150.0,0.00043276,30]
[340577125,1729505686458,-274.14650638,0.00043282,30]
[340577126,1729505686704,-212.30851582,0.00043282,30]
[340577127,1729505686731,-684.90425,0.00043288,30]
[340577128,1729505686756,-150.0,0.00043298,30]
[340577129,1729505686781,-150.0,0.00043298,120]
[340577130,1729505686806,-150.0,0.00043315,30]
[340577131,1729505686830,-274.14650638,0.00043329,30]
[340577132,1729505686855,-212.30851582,0.00043329,30]
[340577133,1729505686879,-150.0,0.00043355,30]
[340577134,1729505686906,-274.14650638,0.00043376,30]
[340577135,1729505686932,-212.30851582,0.00043376,30]
[340577136,1729505686956,-150.0,0.00043413,30]
[340577137,1729505686980,-274.14650638,0.00043423,30]
[340577138,1729505687005,-212.30851582,0.00043423,30]
[340577139,1729505687030,-274.14650638,0.0004347,30]
[340577140,1729505687054,-212.30851582,0.0004347,30]
[340577141,1729505687078,-150.0,0.0004347,30]
[340577142,1729505687103,-150.0,0.0004347,30]
[340577143,1729505687128,-150.0,0.0004347,30]
[340577144,1729505687152,-150.0,0.0004347,30]
[340577145,1729505687176,-150.0,0.0004347,30]
[340577146,1729505687200,-684.90425,0.00043488,30]
[340577147,1729505687224,-20599.76170559,0.000435,120]
[340577148,1729505687250,-75000.0,0.000435,120]
[340577149,1729505687276,-274.14650638,0.00043517,30]
[340577150,1729505687302,-212.30851582,0.00043517,30]
[340577151,1729505687328,-150.0,0.00043528,30]
[340577152,1729505687357,-150.0,0.00043548,30]
[340577153,1729505687387,-274.14650638,0.00043564,30]
[340577154,1729505687417,-212.30851582,0.00043564,30]
[340577155,1729505687446,-150.0,0.00043585,30]
[340577156,1729505687474,-274.14650638,0.00043611,30]
[340577157,1729505687501,-212.30851582,0.00043611,30]
[340577158,1729505687526,-150.0,0.00043643,30]
[340577159,1729505687553,-274.14650638,0.00043658,30]
[340577160,1729505687578,-212.30851582,0.00043658,30]
[340577161,1729505687603,-150.0,0.00043664,30]
[340577162,1729505687629,-684.90425,0.00043688,30]
[340577163,1729505687653,-1102.76313279,0.000437,120]
[340577164,1729505687679,-150.0,0.000437,30]
[340577165,1729505687704,-274.14650638,0.00043705,30]
[340577166,1729505687729,-212.30851582,0.00043705,30]
[340577167,1729505687755,-274.14650638,0.00043752,30]
[340577168,1729505687780,-212.30851582,0.00043752,30]
[340577169,1729505687809,-150.0,0.00043758,30]
[340577170,1729505687835,-150.0,0.00043781,30]
[340577171,1729505687860,-1000.0,0.00043786,120]
[340577172,1729505687884,-274.14650638,0.00043799,30]
[340577173,1729505687910,-212.30851582,0.00043799,30]
[340577174,1729505687935,-303.69996922,0.000438,120]
[340577175,1729505687960,-467.66136489,0.000438,30]
[340577176,1729505687985,-86180.0,0.000438,120]
[340577177,1729505688011,-151.0,0.00043808,120]
[340577178,1729505688038,-150.0,0.00043815,30]
[340577179,1729505688064,-924.0,0.0004383,120]
[340577180,1729505688091,-4244.08,0.00043835,120]
[340577181,1729505688117,-4244.08,0.00043835,120]
[340577182,1729505688145,-4244.08,0.00043835,120]
[340577183,1729505688172,-4244.08,0.00043835,120]
[340577184,1729505688199,-4244.08,0.00043835,120]
[340577185,1729505688227,-4244.08,0.00043835,120]
[340577186,1729505688255,-4244.08,0.00043835,120]
[340577187,1729505688282,-4244.08,0.00043835,120]
[340577188,1729505688308,-4244.08,0.00043835,120]
[340577189,1729505688335,-4244.08,0.00043835,120]
[340577190,1729505688364,-4244.08,0.00043835,120]
[340577191,1729505688392,-4244.08,0.00043835,120]
[340577192,1729505688418,-4244.08,0.00043835,120]
[340577193,1729505688444,-4244.08,0.00043835,120]
[340577194,1729505688470,-4244.08,0.00043835,120]
[340577195,1729505688496,-4244.08,0.00043835,120]
[340577196,1729505688522,-4244.08,0.00043835,120]
[340577197,1729505688546,-4244.08,0.00043835,120]
[340577198,1729505688573,-4244.08,0.00043835,120]
[340577199,1729505688599,-4244.08,0.00043835,120]
[340577200,1729505688626,-4244.08,0.00043835,120]
[340577201,1729505688653,-4244.08,0.00043835,120]
[340577202,1729505688679,-4244.08,0.00043835,120]
[340577203,1729505688705,-4244.20250844,0.00043835,120]
[340577204,1729505688730,-2346.56,0.00043835,120]
[340577205,1729505688754,-274.14650638,0.00043846,30]
[340577206,1729505688780,-212.30851582,0.00043846,30]
[340577207,1729505688805,-150.0,0.00043858,30]
[340577208,1729505688829,-150.0,0.00043858,30]
[340577209,1729505688854,-150.0,0.00043873,30]
[340577210,1729505688878,-165.6831,0.00043888,30]
[340577211,1729505688905,-274.14650638,0.00043893,30]
[340577212,1729505688930,-212.30851582,0.00043893,30]
[340577213,1729505688955,-10000.0,0.000439,120]
[340577214,1729505688980,-10000.0,0.000439,120]
[340577215,1729505689005,-10000.0,0.000439,120]
[340577216,1729505689030,-10000.0,0.000439,120]
[340577217,1729505689054,-150.0,0.00043914,30]
[340577218,1729505689079,-150.0,0.0004393,30]
[340577219,1729505689103,-274.14650638,0.0004394,30]
[340577220,1729505689128,-212.30851582,0.0004394,30]
[340577221,1729505689153,-150.0,0.00043952,120]
[340577222,1729505689178,-9460.01368118,0.00043952,120]
[340577223,1729505689203,-150.0,0.00043988,30]
[340577224,1729505689228,-274.14650638,0.00043988,30]
[340577225,1729505689253,-212.30851582,0.00043988,30]
[340577226,1729505689281,-50000.0,0.00044,34]
[340577227,1729505689308,-50000.0,0.00044,44]
[340577228,1729505689335,-50000.0,0.00044,54]
[340577229,1729505689570,-80599.97736961,0.00044,120]
[340577230,1729505689597,-99585.69127899,0.00044,120]
[340577231,1729505689622,-11209.0,0.00044,120]
[340577232,1729505689648,-75000.0,0.00044,120]
[340577233,1729505689672,-988.24127736,0.00044,120]
[340577234,1729505689697,-9917.76781296,0.00044,120]
[340577235,1729505689723,-1000.0,0.00044,120]
[340577236,1729505689755,-296.70860875,0.00044,30]
[340577237,1729505689781,-1236.0,0.00044,60]
[340577238,1729505689807,-100000.0,0.00044,120]
[340577239,1729505689838,-250.0,0.00044,30]
[340577240,1729505689865,-502.519854,0.00044,57]
[340577241,1729505689895,-150.0,0.00044013,30]
[340577242,1729505689925,-274.14650638,0.00044035,30]
[340577243,1729505689953,-212.30851582,0.00044035,30]
[340577244,1729505689981,-150.0,0.00044045,30]
[340577245,1729505690008,-150.0,0.00044052,30]
[340577246,1729505690036,-274.14650638,0.00044082,30]
[340577247,1729505690062,-212.30851582,0.00044082,30]
[340577248,1729505690088,-684.90425,0.00044088,30]
[340577249,1729505690115,-150.0,0.00044103,30]
[340577250,1729505690142,-150.0,0.00044114,120]
[340577251,1729505690168,-274.14650638,0.00044129,30]
[340577252,1729505690195,-212.30851582,0.00044129,30]
[340577253,1729505690221,-153.43049109,0.00044136,120]
[340577254,1729505690249,-150.0,0.0004416,30]
[340577255,1729505690276,-274.14650638,0.00044176,30]
[340577256,1729505690302,-212.30851582,0.00044176,30]
[340577257,1729505690328,-150.0,0.000442,120]
[340577258,1729505690357,-150.0,0.00044218,30]
[340577259,1729505690384,-274.14650638,0.00044223,30]
[340577260,1729505690409,-212.30851582,0.00044223,30]
[340577261,1729505690435,-2346.56,0.00044246,120]
[340577262,1729505690460,-150.0,0.00044246,30]
[340577263,1729505690486,-150.0,0.00044246,30]
[340577264,1729505690513,-150.0,0.00044246,30]
[340577265,1729505690539,-150.0,0.00044246,30]
[340577266,1729505690564,-150.0,0.00044246,30]
[340577267,1729505690590,-150.0,0.00044246,30]
[340577268,1729505690616,-267.393,0.00044267,70]
[340577269,1729505690641,-274.14650638,0.0004427,30]
[340577270,1729505690668,-212.30851582,0.0004427,30]
[340577271,1729505690694,-150.0,0.00044275,30]
[340577272,1729505690719,-684.90425,0.00044288,30]
[340577273,1729505690746,-263.39724205,0.000443,33]
[340577274,1729505690772,-274.14650638,0.00044317,30]
[340577275,1729505690798,-212.30851582,0.00044317,30]
[340577276,1729505690825,-150.0,0.00044333,30]
[340577277,1729505690851,-274.14650638,0.00044364,30]
[340577278,1729505690878,-212.30851582,0.00044364,30]
[340577279,1729505690905,-150.0,0.0004439,30]
[340577280,1729505690932,-274.14650638,0.00044411,30]
[340577281,1729505690957,-212.30851582,0.00044411,30]
[340577282,1729505690982,-150.0,0.0004444,30]
[340577283,1729505691009,-150.0,0.00044448,30]
[340577284,1729505691034,-274.14650638,0.00044458,30]
[340577285,1729505691060,-212.30851582,0.00044458,30]
[340577286,1729505691086,-150.0,0.00044479,30]
[340577287,1729505691111,-684.90425,0.00044488,30]
[340577288,1729505691138,-75000.0,0.000445,120]
[340577289,1729505691164,-27000.0,0.000445,90]
[340577290,1729505691191,-274.14650638,0.00044505,30]
[340577291,1729505691216,-212.30851582,0.00044505,30]
[340577292,1729505691243,-150.0,0.00044505,30]
[340577293,1729505691270,-274.14650638,0.00044552,30]
[340577294,1729505691297,-212.30851582,0.00044552,30]
[340577295,1729505691324,-150.0,0.00044563,30]
[340577296,1729505691354,-150.0,0.00044579,30]
[340577297,1729505691381,-274.14650638,0.00044599,30]
[340577298,1729505691408,-212.30851582,0.00044599,30]
[340577299,1729505691436,-150.0,0.0004462,30]
[340577300,1729505691462,-150.0,0.00044634,30]
[340577301,1729505691488,-150.0,0.00044634,30]
[340577302,1729505691516,-274.14650638,0.00044646,30]
[340577303,1729505691542,-212.30851582,0.00044646,30]
[340577304,1729505691569,-2346.56,0.00044657,120]
[340577305,1729505691594,-150.0,0.00044678,30]
[340577306,1729505691620,-1000.0,0.00044682,120]
[340577307,1729505691645,-684.90425,0.00044688,30]
[340577308,1729505691670,-274.14650638,0.00044693,30]
[340577309,1729505691695,-212.30851582,0.00044693,30]
[340577310,1729505691719,-150.0,0.00044712,30]
[340577311,1729505691745,-150.0,0.00044735,30]
[340577312,1729505691770,-274.14650638,0.0004474,30]
[340577313,1729505691795,-212.30851582,0.0004474,30]
[340577314,1729505691820,-274.14650638,0.00044787,30]
[340577315,1729505691846,-212.30851582,0.00044787,30]
[340577316,1729505691870,-150.0,0.00044793,30]
[340577317,1729505691895,-1778.978003,0.000448,30]
[340577318,1729505691921,-9585.351056,0.000448,30]
[340577319,1729505691947,-20235.741118,0.000448,30]
[340577320,1729505691972,-20235.741118,0.000448,30]
[340577321,1729505691997,-20235.741118,0.000448,30]
[340577322,1729505692021,-1596.83481723,0.000448,120]
[340577323,1729505692046,-1447.34129592,0.000448,60]
[340577324,1729505692072,-348.896641,0.000448,30]
[340577325,1729505692097,-169.857443,0.000448,30]
[340577326,1729505692122,-150.0,0.00044828,30]
[340577327,1729505692146,-274.14650638,0.00044834,30]
[340577328,1729505692170,-212.30851582,0.00044834,30]
[340577329,1729505692195,-150.0,0.0004485,30]
[340577330,1729505692219,-274.14650638,0.00044881,30]
[340577331,1729505692245,-212.30851582,0.00044881,30]
[340577332,1729505692270,-1353.06659659,0.0004489,120]
[340577333,1729505692521,-1316.32298732,0.000449,120]
[340577334,1729505692548,-9990.86714272,0.000449,30]
[340577335,1729505692574,-458.61358163,0.000449,60]
[340577336,1729505692600,-12707.26578248,0.000449,30]
[340577337,1729505694303,-500.0,0.00035615,60]
[340577338,1729505694336,-500.0,0.00036711,60]
[340577339,1729505694366,-218482.30031752,0.000449,30]
[340577340,1729505694392,-22461.0,0.000449,120]
[340577341,1729505694418,-5000.0,0.000449,120]
[340577342,1729505694445,-150.0,0.00044908,30]
[340577343,1729505694471,-58196.53482537,0.00044926,45]
[340577344,1729505694497,-274.14650638,0.00044928,30]
[340577345,1729505694522,-212.30851582,0.00044928,30]
[340577346,1729505694546,-150.0,0.00044945,30]
[340577347,1729505694571,-150.0,0.00044965,30]
[340577348,1729505694596,-274.14650638,0.00044975,30]
[340577349,1729505694620,-212.30851582,0.00044975,30]
[340577350,1729505694643,-656.52844411,0.00044987,120]
[340577351,1729505694670,-50000.0,0.00045,35]
[340577352,1729505694697,-50000.0,0.00045,45]
[340577353,1729505694724,-50000.0,0.00045,55]
[340577354,1729505694748,-678.13353567,0.00045,30]
[340577355,1729505694773,-150.0,0.00045,85]
[340577356,1729505694798,-1178.04452254,0.00045,120]
[340577357,1729505694822,-34045.91968907,0.00045,30]
[340577358,1729505694847,-50000.14230022,0.00045,120]
[340577359,1729505694873,-75000.0,0.00045,120]
[340577360,1729505694901,-25600.65623587,0.00045,120]
[340577361,1729505694929,-11109.03049136,0.00045,120]
[340577362,1729505694954,-1837.84397684,0.00045,120]
[340577363,1729505694979,-189.19145072,0.00045,30]
[340577364,1729505695004,-13127.7396054,0.00045,120]
[340577365,1729505695029,-302.02062871,0.00045,120]
[340577366,1729505695053,-165.06546695,0.00045,120]
[340577367,1729505695078,-1750.64290042,0.00045,60]
[340577368,1729505695102,-1065.0,0.00045,30]
[340577369,1729505695126,-3317.28615932,0.00045,60]
[340577370,1729505695151,-550.0,0.00045,120]
[340577371,1729505695176,-1000.0,0.00045,120]
[340577372,1729505695202,-5000.0,0.00045,120]
[340577373,1729505695227,-444.11010597,0.00045,120]
[340577374,1729505695262,-40000.0,0.00045,120]
[340577375,1729505695287,-70000.0,0.00045,30]
[340577376,1729505695312,-3000.0,0.00045,120]
[340577377,1729505695337,-3000.0,0.00045,120]